bitfinex/quotes_BTCUSD_20260110
["timestamp","ask_amount","ask_price","bid_price","bid_amount"]
[1768062983812,6.167e-05,90663.0,90652.0,0.02206226]
[1768062984015,6.167e-05,90663.0,90655.0,0.01103083]
[1768062984213,6.167e-05,90663.0,90654.0,0.01103095]
[1768062984544,6.167e-05,90663.0,90652.0,0.02206226]
[1768062984751,6.167e-05,90663.0,90653.0,0.01103107]
[1768062985151,6.167e-05,90663.0,90654.0,0.01103095]
[1768062985522,6.167e-05,90663.0,90653.0,0.01103107]
[1768062986184,6.167e-05,90663.0,90654.0,0.01103095]
[1768062986360,6.167e-05,90663.0,90655.0,0.01103083]
[1768062986560,6.167e-05,90663.0,90652.0,0.02206226]
[1768062986747,6.167e-05,90663.0,90653.0,0.01103107]
[1768062987150,6.167e-05,90663.0,90654.0,0.01103095]
[1768062989003,6.167e-05,90663.0,90655.0,0.01103083]
[1768062989586,6.167e-05,90663.0,90654.0,0.01103095]
[1768062989797,6.167e-05,90663.0,90653.0,0.01103107]
[1768062989994,6.167e-05,90663.0,90654.0,0.01103095]
[1768062990384,6.167e-05,90663.0,90653.0,0.01103107]
[1768062990582,6.167e-05,90663.0,90652.0,0.01103107]
[1768062990782,6.167e-05,90663.0,90653.0,0.01103107]
[1768062991015,6.167e-05,90663.0,90652.0,0.02206226]
[1768062991473,6.167e-05,90663.0,90653.0,0.01103107]
[1768062991704,6.167e-05,90663.0,90652.0,0.01103107]
[1768062992225,6.167e-05,90663.0,90652.0,0.02206226]
[1768062992850,6.167e-05,90663.0,90652.0,0.01103107]
[1768062993067,6.167e-05,90663.0,90652.0,0.02206226]
[1768062993705,6.167e-05,90663.0,90652.0,0.01103107]
[1768062993904,6.167e-05,90663.0,90652.0,0.02206226]
[1768062994272,6.167e-05,90663.0,90652.0,0.01103107]
[1768062994912,6.167e-05,90663.0,90652.0,0.02206226]
[1768062995085,6.167e-05,90663.0,90652.0,0.01103107]
[1768062995294,6.167e-05,90663.0,90653.0,0.04533622]
[1768062995499,6.167e-05,90663.0,90653.0,0.05636729]
[1768062996101,6.167e-05,90663.0,90653.0,0.04533622]
[1768062996509,6.167e-05,90663.0,90653.0,0.05636729]
[1768062996718,6.167e-05,90663.0,90655.0,0.04533622]
[1768062997522,6.167e-05,90663.0,90654.0,0.01103095]
[1768062999805,6.167e-05,90663.0,90653.0,0.01103107]
[1768063000005,6.167e-05,90663.0,90654.0,0.01103095]
[1768063000503,6.167e-05,90663.0,90653.0,0.01103107]
[1768063000821,6.167e-05,90663.0,90654.0,0.01103095]
[1768063001269,6.167e-05,90663.0,90654.0,0.04533622]
[1768063002287,6.167e-05,90663.0,90654.0,0.05636717]
[1768063003405,6.167e-05,90663.0,90654.0,0.04533622]
[1768063006285,6.167e-05,90663.0,90652.0,0.01103107]
[1768063006478,6.167e-05,90663.0,90652.0,0.02206226]
[1768063007290,6.167e-05,90663.0,90653.0,0.01103107]
[1768063007490,6.167e-05,90663.0,90654.0,0.01103095]
[1768063007698,6.167e-05,90663.0,90653.0,0.01103107]
[1768063007854,6.167e-05,90663.0,90654.0,0.04533622]
[1768063008573,6.167e-05,90663.0,90654.0,0.05636717]
[1768063008796,6.167e-05,90663.0,90656.0,0.04533622]
[1768063011011,0.02208,90666.0,90656.0,0.04533622]
[1768063011769,0.02208,90666.0,90656.0,0.04400428]
[1768063013508,0.02208,90666.0,90654.0,0.01103095]
[1768063013679,0.04654388,90665.0,90654.0,0.01103095]
[1768063014094,0.04654388,90665.0,90653.0,0.01103107]
[1768063014599,0.02208,90666.0,90653.0,0.05731034]
[1768063016046,0.02208,90666.0,90653.0,0.04627927]
[1768063016468,0.02208,90666.0,90653.0,0.05731034]
[1768063016868,0.02208,90666.0,90655.0,0.04627927]
[1768063019994,0.04654388,90665.0,90654.0,0.01103095]
[1768063020402,0.01102815,90677.0,90661.0,0.0110301]
[1768063020642,0.01103107,90677.0,90662.0,0.01102997]
[1768063020844,0.01103107,90677.0,90664.0,0.01102973]
[1768063021081,0.07965191,90678.0,90664.0,0.01102973]
[1768063021574,0.06862388,90678.0,90664.0,0.01102973]
[1768063021784,0.07965191,90678.0,90664.0,0.04413301]
[1768063021981,0.03310803,90678.0,90663.0,0.05730912]
[1768063022160,0.04654388,90677.0,90663.0,0.04413313]
[1768063022487,0.04654388,90677.0,90667.0,0.01102937]
[1768063022719,0.000152,90681.0,90667.0,0.01102937]
[1768063022720,0.000152,90681.0,90669.0,0.05730839]
[1768063022929,0.000152,90681.0,90669.0,0.11245397]
[1768063023166,0.000152,90681.0,90669.0,0.0661747]
[1768063023376,0.000152,90681.0,90669.0,0.01102912]
[1768063024481,0.000152,90681.0,90671.0,0.04692918]
[1768063024690,0.000152,90681.0,90671.0,0.1020736]
[1768063024883,0.000152,90681.0,90671.0,0.04692918]
[1768063025364,6.164e-05,90672.0,90671.0,0.04692918]
[1768063026540,6.164e-05,90672.0,90669.0,0.01102912]
[1768063026761,6.164e-05,90672.0,90668.0,0.06617534]
[1768063026965,6.164e-05,90672.0,90667.0,0.0331012]
[1768063027355,6.164e-05,90672.0,90667.0,0.04413057]
[1768063027518,6.164e-05,90672.0,90668.0,0.01102924]
[1768063027718,6.164e-05,90672.0,90667.0,0.0331012]
[1768063035211,6.164e-05,90672.0,90668.0,0.04692918]
[1768063035404,6.164e-05,90672.0,90668.0,0.04593018]
[1768063035956,6.164e-05,90672.0,90668.0,0.07903138]
[1768063036175,6.164e-05,90672.0,90669.0,0.04692918]
[1768063040422,6.164e-05,90672.0,90668.0,0.01102839]
[1768063040850,0.04770805,90672.0,90668.0,0.01102839]
[1768063042047,0.04770805,90672.0,90663.0,0.03310985]
[1768063043700,0.04770805,90672.0,90663.0,0.02208]
[1768063043883,0.04770805,90672.0,90663.0,0.03310985]
[1768063045587,0.04770805,90672.0,90663.0,0.02208]
[1768063050955,0.04770805,90672.0,90663.0,0.03310985]
[1768063051307,0.04770805,90672.0,90664.0,0.01102973]
[1768063051505,6.164e-05,90672.0,90664.0,0.01102973]
[1768063051868,6.164e-05,90672.0,90661.0,0.02297305]
[1768063052066,0.0110904,90672.0,90664.0,0.02208]
[1768063052270,0.01102924,90668.0,90658.0,0.04692918]
[1768063052472,0.01102924,90668.0,90656.0,0.02208]
[1768063052645,0.04764641,90667.0,90656.0,0.02208]
[1768063059785,0.04764641,90667.0,90656.0,0.0331107]
[1768063060405,0.04764641,90667.0,90657.0,0.01103058]
[1768063061478,0.04764641,90667.0,90656.0,0.02208]
[1768063062724,0.04764641,90667.0,90656.0,0.0331107]
[1768063063737,0.04764641,90667.0,90657.0,0.01103058]
[1768063064514,0.04764641,90667.0,90658.0,0.01103046]
[1768063064996,0.04764641,90667.0,90657.0,0.01103058]
[1768063068052,0.04764641,90667.0,90656.0,0.0331107]
[1768063068256,0.04764641,90667.0,90657.0,0.01103058]
[1768063069166,0.04764641,90667.0,90658.0,0.01103046]
[1768063069587,0.04764641,90667.0,90657.0,0.01103058]
[1768063070153,0.04764641,90667.0,90658.0,0.01103046]
[1768063070795,0.04764641,90667.0,90657.0,0.01103058]
[1768063071887,0.04764641,90667.0,90658.0,0.01103046]
[1768063072207,0.0110904,90672.0,90658.0,0.01103046]
[1768063072382,0.0110904,90672.0,90658.0,0.05685982]
[1768063072531,0.0110904,90672.0,90658.0,0.04582936]
[1768063072726,0.0110904,90672.0,90658.0,0.05685982]
[1768063073149,6.164e-05,90672.0,90658.0,0.05685982]
[1768063073347,0.0110904,90672.0,90658.0,0.05685982]
[1768063074248,0.01102888,90671.0,90658.0,0.04582936]
[1768063074432,0.0110904,90672.0,90658.0,0.05685982]
[1768063076750,0.04828652,90670.0,90656.0,0.0331107]
[1768063076946,0.04828652,90670.0,90658.0,0.01103046]
[1768063078356,0.04828652,90670.0,90657.0,0.01103058]
[1768063079875,0.04828652,90670.0,90658.0,0.01103046]
[1768063080754,0.04828652,90670.0,90660.0,0.01103022]
[1768063081100,0.04828652,90670.0,90661.0,0.0110301]
[1768063081300,0.04828652,90670.0,90662.0,0.01102997]
[1768063082408,6.164e-05,90672.0,90662.0,0.01102997]
[1768063082611,6.164e-05,90672.0,90670.0,0.000999]
[1768063082823,6.164e-05,90672.0,90670.0,0.00084482]
[1768063083035,6.164e-05,90672.0,90670.0,0.04667418]
[1768063084745,6.164e-05,90672.0,90667.0,0.01102937]
[1768063084966,6.164e-05,90672.0,90668.0,0.04659108]
[1768063087892,6.164e-05,90672.0,90666.0,0.01102949]
[1768063088393,0.04805055,90672.0,90667.0,0.01102937]
[1768063089231,0.02208,90676.0,90669.0,0.01102912]
[1768063089906,0.02208,90676.0,90668.0,0.01102924]
[1768063090356,0.02208,90676.0,90669.0,0.01102912]
[1768063091094,0.02208,90676.0,90670.0,0.011029]
[1768063091292,0.02208,90676.0,90669.0,0.01102912]
[1768063091293,0.02208,90676.0,90668.0,0.01102924]
[1768063093088,0.02208,90676.0,90667.0,0.01102937]
[1768063093780,0.02208,90676.0,90667.0,0.05762045]
[1768063094013,0.02198964,90676.0,90667.0,0.05762045]
[1768063094679,0.02198964,90676.0,90667.0,0.04659108]
[1768063094880,0.02198964,90676.0,90667.0,0.05762045]
[1768063096219,0.02189928,90676.0,90671.0,0.04659108]
[1768063097271,0.02189928,90676.0,90671.0,0.04643725]
[1768063099001,0.02189928,90676.0,90669.0,0.01102912]
[1768063099193,0.02189928,90676.0,90667.0,0.01102937]
[1768063099463,0.02189928,90676.0,90668.0,0.01102924]
[1768063099846,0.02189928,90676.0,90669.0,0.01102912]
[1768063101584,0.02189928,90676.0,90669.0,0.01097232]
[1768063101767,0.02189928,90676.0,90670.0,0.011029]
[1768063102716,0.06988819,90676.0,90671.0,0.01102888]
[1768063103037,0.06979783,90676.0,90670.0,0.011029]
[1768063103234,0.06979783,90676.0,90668.0,0.01102924]
[1768063103454,0.06979783,90676.0,90670.0,0.011029]
[1768063104278,0.0139907,90676.0,90672.0,0.01102876]
[1768063104533,0.0139907,90676.0,90670.0,0.011029]
[1768063104899,0.0139907,90676.0,90672.0,0.01102876]
[1768063105458,0.0139907,90676.0,90673.0,0.01102864]
[1768063105659,0.0139907,90676.0,90671.0,0.01102888]
[1768063106075,0.0139907,90676.0,90672.0,0.01102876]
[1768063106634,0.0139907,90676.0,90671.0,0.01102888]
[1768063107434,0.0139907,90676.0,90672.0,0.01102876]
[1768063109708,0.0139907,90676.0,90673.0,0.01102864]
[1768063110025,0.0139907,90676.0,90674.0,0.05514233]
[1768063110432,0.01390033,90676.0,90674.0,0.05514233]
[1768063110828,0.01390033,90676.0,90673.0,0.01102864]
[1768063111588,0.01065939,90676.0,90673.0,0.0661718]
[1768063111770,0.01065939,90676.0,90672.0,0.01102876]
[1768063111928,0.01065939,90676.0,90673.0,0.01102864]
[1768063113150,0.000152,90681.0,90674.0,0.01102851]
[1768063113355,0.000152,90681.0,90673.0,0.01102864]
[1768063113758,0.000152,90681.0,90674.0,0.01102851]
[1768063114744,0.000152,90681.0,90675.0,0.01102839]
[1768063115145,0.000152,90681.0,90674.0,0.01102851]
[1768063115568,0.000152,90681.0,90671.0,0.01102888]
[1768063115765,0.000152,90681.0,90670.0,0.011029]
[1768063116383,0.000152,90681.0,90669.0,0.01102912]
[1768063116793,0.000152,90681.0,90670.0,0.011029]
[1768063119638,0.000152,90681.0,90672.0,0.01102876]
[1768063120176,0.000152,90681.0,90671.0,0.01102888]
[1768063120799,0.000152,90681.0,90672.0,0.01102876]
[1768063121138,0.000152,90681.0,90671.0,0.01102888]
[1768063122302,0.000152,90681.0,90672.0,0.01102876]
[1768063122507,0.000152,90681.0,90673.0,0.01102864]
[1768063123141,0.000152,90681.0,90672.0,0.01102876]
[1768063123338,0.000152,90681.0,90670.0,0.011029]
[1768063123550,0.000152,90681.0,90672.0,0.01102876]
[1768063124125,0.000152,90681.0,90671.0,0.01102888]
[1768063125192,0.000152,90681.0,90673.0,0.01102864]
[1768063126602,0.00054317,90681.0,90674.0,0.01102851]
[1768063127906,0.00054317,90681.0,90675.0,0.01102839]
[1768063128747,0.00054317,90681.0,90676.0,0.01102827]
[1768063129796,0.00054317,90681.0,90675.0,0.01102839]
[1768063130098,0.00054317,90681.0,90676.0,0.01102827]
[1768063130856,0.00054317,90681.0,90678.0,0.01102803]
[1768063131081,0.00054317,90681.0,90676.0,0.05750642]
[1768063131534,0.00054317,90681.0,90674.0,0.01102851]
[1768063131745,0.00054317,90681.0,90671.0,0.05750703]
[1768063132109,0.00054317,90681.0,90671.0,0.04647815]
[1768063132289,0.00054317,90681.0,90672.0,0.01102876]
[1768063133024,0.00054317,90681.0,90671.0,0.05750703]
[1768063133392,0.00054317,90681.0,90672.0,0.01102876]
[1768063133596,0.00054317,90681.0,90673.0,0.01102864]
[1768063134799,0.00054317,90681.0,90674.0,0.01102851]
[1768063135251,0.00054317,90681.0,90675.0,0.01102839]
[1768063135657,0.00054317,90681.0,90672.0,0.01102876]
[1768063135972,0.00054317,90681.0,90673.0,0.01102864]
[1768063136592,0.00054317,90681.0,90672.0,0.01102876]
[1768063137821,0.00054317,90681.0,90671.0,0.05750703]
[1768063138555,0.00054317,90681.0,90672.0,0.01102876]
[1768063138965,0.00054317,90681.0,90673.0,0.01102864]
[1768063139334,0.00054317,90681.0,90674.0,0.01102851]
[1768063139715,0.00054317,90681.0,90675.0,0.04575504]
[1768063139926,0.00054317,90681.0,90675.0,0.05678343]
[1768063140363,0.00054317,90681.0,90677.0,0.04575504]
[1768063140933,0.00054317,90681.0,90674.0,0.01102851]
[1768063140934,0.00054317,90681.0,90679.0,0.04575504]
[1768063141113,0.00054317,90681.0,90679.0,0.0453645]
[1768063142654,0.00054317,90681.0,90679.0,0.0443655]
[1768063144897,0.05035925,90681.0,90676.0,0.01102827]
[1768063145238,0.00054317,90681.0,90676.0,0.01102827]
[1768063146431,0.00054317,90681.0,90676.0,0.05765716]
[1768063146675,0.00054317,90681.0,90677.0,0.05765704]
[1768063146893,0.00054317,90681.0,90677.0,0.04662889]
[1768063150495,0.00054317,90681.0,90671.0,0.01102888]
[1768063150711,0.00054317,90681.0,90672.0,0.01102876]
[1768063150916,0.00054317,90681.0,90671.0,0.01102888]
[1768063151654,0.00054317,90681.0,90670.0,0.011029]
[1768063151860,0.00054317,90681.0,90671.0,0.01102888]
[1768063152226,0.00054317,90681.0,90670.0,0.011029]
[1768063153644,0.00054317,90681.0,90671.0,0.01102888]
[1768063153843,0.00054317,90681.0,90669.0,0.01102912]
[1768063154211,0.00054317,90681.0,90671.0,0.01102888]
[1768063154594,0.00054317,90681.0,90673.0,0.01102864]
[1768063154820,0.00054317,90681.0,90675.0,0.01102839]
[1768063155370,0.00054317,90681.0,90676.0,0.01102827]
[1768063155581,0.05035925,90681.0,90676.0,0.01102827]
[1768063155783,0.05035925,90681.0,90675.0,0.01102839]
[1768063156780,0.05035925,90681.0,90676.0,0.01102827]
[1768063157892,0.00054317,90681.0,90677.0,0.04662889]
[1768063161559,0.00054317,90681.0,90675.0,0.01102839]
[1768063163200,0.00054317,90681.0,90676.0,0.01102827]
[1768063163397,0.00054317,90681.0,90675.0,0.01102839]
[1768063163603,0.00054317,90681.0,90676.0,0.01102827]
[1768063163983,0.00054317,90681.0,90677.0,0.01102815]
[1768063167853,0.00054317,90681.0,90677.0,0.04662889]
[1768063169916,0.00054317,90681.0,90677.0,0.05765704]
[1768063170131,0.00054317,90681.0,90677.0,0.04662889]
[1768063170309,0.00054317,90681.0,90677.0,0.05765704]
[1768063170509,0.00054317,90681.0,90677.0,0.04662889]
[1768063170815,0.00054317,90681.0,90677.0,0.05765704]
[1768063171215,0.00054317,90681.0,90677.0,0.04662889]
[1768063171715,0.00054317,90681.0,90677.0,0.05765704]
[1768063172150,0.00054317,90681.0,90677.0,0.04662889]
[1768063172357,0.00054317,90681.0,90677.0,0.05765704]
[1768063173450,0.00054317,90681.0,90677.0,0.01102815]
[1768063173651,0.00054317,90681.0,90676.0,0.01102827]
[1768063174421,0.04892908,90681.0,90676.0,0.01102827]
[1768063174769,0.04892908,90681.0,90677.0,0.01102815]
[1768063175080,0.00054317,90681.0,90677.0,0.0603885]
[1768063177285,0.00054317,90681.0,90677.0,0.04936035]
[1768063178083,0.00054317,90681.0,90677.0,0.0603885]
[1768063179389,0.04892908,90681.0,90677.0,0.01102815]
[1768063183899,0.00054317,90681.0,90679.0,0.05513913]
[1768063184109,0.00054317,90681.0,90678.0,0.01102803]
[1768063184235,0.00045277,90681.0,90678.0,0.01102803]
[1768063184459,0.00045277,90681.0,90677.0,0.01102815]
[1768063184679,0.04883868,90681.0,90678.0,0.01102803]
[1768063186297,0.00045277,90681.0,90678.0,0.01102803]
[1768063186499,0.00045277,90681.0,90679.0,0.04936035]
[1768063189794,7.7e-07,90681.0,90678.0,0.0661681]
[1768063189996,7.7e-07,90681.0,90679.0,0.04936035]
[1768063191506,7.7e-07,90681.0,90678.0,0.01102803]
[1768063191804,7.7e-07,90681.0,90678.0,0.06616808]
[1768063194723,7.7e-07,90681.0,90680.0,0.05513895]
[1768063197216,7.7e-07,90681.0,90679.0,0.0551394]
[1768063199725,7.7e-07,90681.0,90680.0,0.04631705]
[1768063201824,7.7e-07,90681.0,90680.0,0.05513895]
[1768063206378,7.7e-07,90681.0,90680.0,0.10392515]
[1768063206599,0.00023276,90692.0,90688.0,0.0487862]
[1768063206803,0.00028019,90692.0,90688.0,0.04874125]
[1768063207409,0.00028019,90692.0,90686.0,0.01102706]
[1768063208386,0.00028019,90692.0,90687.0,0.01102693]
[1768063208529,0.00028019,90692.0,90688.0,0.01102681]
[1768063209944,0.00028019,90692.0,90686.0,0.01102706]
[1768063210149,0.00028019,90692.0,90687.0,0.01102693]
[1768063210568,0.00028019,90692.0,90686.0,0.01102706]
[1768063210786,0.00028019,90692.0,90682.0,0.01102754]
[1768063212540,0.00028019,90692.0,90681.0,0.01102766]
[1768063212895,0.00028019,90692.0,90682.0,0.01102754]
[1768063213645,0.00028019,90692.0,90683.0,0.01102742]
[1768063214027,0.04605607,90692.0,90683.0,0.01102742]
[1768063215139,0.04605607,90692.0,90684.0,0.0110273]
[1768063216148,0.04605607,90692.0,90682.0,0.01102754]
[1768063216298,0.04605607,90692.0,90683.0,0.01102742]
[1768063216501,0.04605607,90692.0,90684.0,0.0110273]
[1768063217650,0.00028019,90692.0,90687.0,0.01102693]
[1768063218428,0.00028019,90692.0,90686.0,0.01102706]
[1768063218625,0.00028019,90692.0,90687.0,0.01102693]
[1768063219140,0.00028019,90692.0,90685.0,0.01102718]
[1768063219347,0.00028019,90692.0,90686.0,0.01102706]
[1768063220188,0.00028019,90692.0,90685.0,0.01102718]
[1768063220414,0.00028019,90692.0,90683.0,0.01102742]
[1768063221586,0.04577588,90691.0,90682.0,0.01102754]
[1768063221791,0.04577588,90691.0,90683.0,0.01102742]
[1768063222005,0.04577588,90691.0,90682.0,0.01102754]
[1768063222206,0.04577588,90691.0,90683.0,0.01102742]
[1768063222643,0.04577588,90691.0,90682.0,0.01102754]
[1768063222958,0.04577588,90691.0,90683.0,0.01102742]
[1768063223717,0.04577588,90691.0,90681.0,0.01102766]
[1768063224116,0.04577588,90691.0,90682.0,0.01102754]
[1768063224365,0.04577588,90691.0,90683.0,0.01102742]
[1768063224569,0.00028019,90692.0,90683.0,0.01102742]
[1768063224730,0.04605607,90692.0,90683.0,0.01102742]
[1768063224927,0.04605607,90692.0,90680.0,0.01102779]
[1768063225130,0.04605607,90692.0,90681.0,0.01102766]
[1768063225928,0.04605607,90692.0,90682.0,0.01102754]
[1768063226310,0.04605607,90692.0,90680.0,0.01102779]
[1768063226712,0.04605607,90692.0,90681.0,0.01102766]
[1768063227954,0.04605607,90692.0,90680.0,0.01102779]
[1768063228748,0.04605607,90692.0,90679.0,0.02205363]
[1768063229087,0.04605607,90692.0,90680.0,0.01102779]
[1768063229408,0.00028019,90692.0,90682.0,0.0487862]
[1768063230066,0.00028019,90692.0,90682.0,0.0483342]
[1768063230764,0.01130652,90692.0,90682.0,0.0483342]
[1768063230971,0.00028019,90692.0,90686.0,0.0487862]
[1768063231921,0.00028019,90692.0,90686.0,0.0708662]
[1768063234292,0.00028019,90692.0,90686.0,0.07079793]
[1768063234697,0.00028019,90692.0,90686.0,0.02208]
[1768063235586,0.04550128,90692.0,90686.0,0.02208]
[1768063237289,0.04550128,90692.0,90686.0,0.02192655]
[1768063241619,0.04550128,90692.0,90686.0,0.02185828]
[1768063241863,0.04550128,90692.0,90686.0,0.02170491]
[1768063245912,0.04550128,90692.0,90686.0,0.02160196]
[1768063253973,0.00028019,90692.0,90686.0,0.06830097]
[1768063257969,0.04881384,90692.0,90686.0,0.02160196]
[1768063258167,0.00028019,90692.0,90686.0,0.02153369]
[1768063259236,0.00028019,90692.0,90686.0,0.02142794]
[1768063262824,0.00028019,90692.0,90686.0,0.06812695]
[1768063263841,0.00028019,90692.0,90687.0,0.04555178]
[1768063265195,0.00028019,90692.0,90686.0,0.02142794]
[1768063265437,0.00028019,90692.0,90687.0,0.04555178]
[1768063265644,0.00028019,90692.0,90686.0,0.02142794]
[1768063273019,0.00028019,90692.0,90687.0,0.04555178]
[1768063277656,0.000152,90699.0,90688.0,0.04555178]
[1768063277831,0.000152,90699.0,90694.0,0.04555178]
[1768063278033,0.000152,90699.0,90695.0,0.03310596]
[1768063278202,0.000152,90699.0,90695.0,0.02208]
[1768063279159,0.04551399,90699.0,90695.0,0.02208]
[1768063279562,0.000152,90699.0,90696.0,0.04555178]
[1768063280766,0.000152,90699.0,90695.0,0.02208]
[1768063281134,0.000152,90699.0,90695.0,0.03310596]
[1768063281689,0.000152,90699.0,90696.0,0.01102584]
[1768063281820,0.000152,90699.0,90695.0,0.03310596]
[1768063282042,0.000152,90699.0,90695.0,0.02208]
[1768063284276,0.04551399,90699.0,90695.0,0.02208]
[1768063295084,0.000152,90699.0,90695.0,0.02208]
[1768063296046,0.000152,90699.0,90695.0,0.06883963]
[1768063296248,0.000152,90699.0,90695.0,0.02208]
[1768063296455,0.000152,90699.0,90696.0,0.04675963]
[1768063300990,0.000152,90699.0,90695.0,0.02208]
[1768063301418,0.000152,90699.0,90696.0,0.01102584]
[1768063301776,0.04858766,90707.0,90698.0,0.0110256]
[1768063301927,0.04858766,90707.0,90700.0,0.01102535]
[1768063302250,0.04858766,90707.0,90697.0,0.01102572]
[1768063302478,0.04858766,90707.0,90698.0,0.0110256]
[1768063302632,0.04858766,90707.0,90700.0,0.01102535]
[1768063303028,0.04858766,90707.0,90699.0,0.01102547]
[1768063303552,0.04858766,90707.0,90697.0,0.30320696]
[1768063303756,0.04858766,90707.0,90698.0,0.0110256]
[1768063304049,0.04858766,90707.0,90697.0,0.30320696]
[1768063304262,0.04858766,90707.0,90697.0,0.01102572]
[1768063304871,0.04858766,90707.0,90696.0,0.01102584]
[1768063305225,0.04858766,90707.0,90695.0,0.03310596]
[1768063305426,0.04858766,90707.0,90696.0,0.01102584]
[1768063311425,0.04858766,90707.0,90695.0,0.03310596]
[1768063311632,0.04858766,90707.0,90696.0,0.01102584]
[1768063314836,0.04858766,90707.0,90695.0,0.03310596]
[1768063315257,0.04858766,90707.0,90696.0,0.01102584]
[1768063316174,0.04858766,90707.0,90695.0,0.03310596]
[1768063316374,0.04858766,90707.0,90696.0,0.01102584]
[1768063316570,0.04858766,90707.0,90695.0,0.03310596]
[1768063317391,0.04858766,90707.0,90696.0,0.01102584]
[1768063317591,0.04858766,90707.0,90695.0,0.03310596]
[1768063318413,0.04858766,90707.0,90696.0,0.01102584]
[1768063318614,0.04858766,90707.0,90695.0,0.03310596]
[1768063319668,0.04858766,90707.0,90697.0,0.01102572]
[1768063320645,0.04858766,90707.0,90696.0,0.01102584]
[1768063321392,0.04858766,90707.0,90695.0,0.03306078]
[1768063321599,0.04858766,90707.0,90696.0,0.01102584]
[1768063322100,0.04858766,90707.0,90695.0,0.03306078]
[1768063322294,0.04858766,90707.0,90695.0,0.02203482]
[1768063322478,0.04858766,90707.0,90695.0,0.03306078]
[1768063322648,0.04858766,90707.0,90696.0,0.01102584]
[1768063323425,0.04858766,90707.0,90695.0,0.03306078]
[1768063325466,0.04858766,90707.0,90696.0,0.01102584]
[1768063327035,0.04858766,90707.0,90695.0,0.03306078]
[1768063328616,0.04858766,90707.0,90696.0,0.01102584]
[1768063329252,0.04858766,90707.0,90695.0,0.03306078]
[1768063329753,0.000152,90709.0,90698.0,0.0110256]
[1768063329959,0.000152,90709.0,90698.0,0.01098042]
[1768063330184,0.000152,90709.0,90700.0,0.01102535]
[1768063330391,0.000152,90709.0,90698.0,0.01098042]
[1768063330600,0.000152,90709.0,90699.0,0.01102547]
[1768063330810,0.000152,90709.0,90698.0,0.01098042]
[1768063331283,0.04933744,90709.0,90696.0,0.01102584]
[1768063331520,0.04933744,90709.0,90697.0,0.01102572]
[1768063332271,0.04933744,90709.0,90691.0,0.01222284]
[1768063332487,0.04918544,90706.0,90693.0,0.0110262]
[1768063332870,0.04918544,90706.0,90694.0,0.01102608]
[1768063334548,0.000152,90697.0,90694.0,0.01102608]
[1768063335064,0.04918544,90706.0,90693.0,0.0110262]
[1768063335287,0.04918544,90706.0,90694.0,0.01102608]
[1768063335468,0.04918544,90706.0,90693.0,0.0110262]
[1768063335870,0.04918544,90706.0,90692.0,0.03310633]
[1768063336523,0.04918544,90706.0,90693.0,0.0110262]
[1768063338132,0.04918544,90703.0,90694.0,0.02208]
[1768063342016,0.04918544,90703.0,90694.0,0.02203483]
[1768063351638,0.06021043,90703.0,90694.0,0.02203483]
[1768063352314,0.01102499,90703.0,90694.0,0.07091642]
[1768063352508,0.01102499,90703.0,90694.0,0.02203483]
[1768063352645,0.01102499,90703.0,90695.0,0.04888159]
[1768063354413,0.01102511,90702.0,90695.0,0.04888159]
[1768063354613,0.01102499,90703.0,90695.0,0.04888159]
[1768063354911,0.01102511,90702.0,90694.0,0.02203483]
[1768063355049,0.01102511,90702.0,90694.0,0.06933863]
[1768063355253,0.01102499,90703.0,90695.0,0.0473038]
[1768063355761,0.01102499,90703.0,90694.0,0.02203483]
[1768063355967,0.06020481,90703.0,90694.0,0.02203483]
[1768063356339,0.01102511,90702.0,90695.0,0.0473038]
[1768063356633,0.01102499,90703.0,90695.0,0.0473038]
[1768063358225,0.01102499,90703.0,90694.0,0.02203483]
[1768063360811,0.01102487,90704.0,90694.0,0.02203483]
[1768063362956,0.01102499,90703.0,90694.0,0.02203483]
[1768063365310,0.01102487,90704.0,90694.0,0.02203483]
[1768063368346,0.01102475,90705.0,90694.0,0.02203483]
[1768063370273,0.06020469,90704.0,90694.0,0.02203483]
[1768063370609,0.04917982,90702.0,90694.0,0.02203483]
[1768063373501,0.04917982,90702.0,90689.0,0.01102669]
[1768063373728,0.04917982,90702.0,90693.0,0.02208]
[1768063380938,0.06020493,90702.0,90693.0,0.02208]
[1768063381085,0.04917982,90702.0,90693.0,0.02208]
[1768063383883,0.06020493,90702.0,90693.0,0.02208]
[1768063386799,0.06020493,90702.0,90687.0,0.01102693]
[1768063386999,0.000152,90693.0,90688.0,0.02208]
[1768063387313,0.01102511,90702.0,90688.0,0.02208]
[1768063387314,0.04778958,90700.0,90688.0,0.02208]
[1768063390355,0.01102547,90699.0,90688.0,0.02208]
[1768063390619,0.04778958,90700.0,90688.0,0.02208]
[1768063391184,0.01102547,90699.0,90688.0,0.02208]
[1768063391364,0.05881493,90700.0,90688.0,0.02208]
[1768063393536,0.01102547,90699.0,90688.0,0.02208]
[1768063393699,0.05881493,90700.0,90688.0,0.02208]
[1768063400083,0.04778958,90700.0,90688.0,0.02208]
[1768063400321,0.05881493,90700.0,90688.0,0.02208]
[1768063402432,0.04778958,90700.0,90688.0,0.02208]
[1768063404291,0.05881493,90700.0,90688.0,0.02208]
[1768063405808,0.04778958,90700.0,90688.0,0.02208]
[1768063407237,0.05881493,90700.0,90688.0,0.02208]
[1768063407451,0.04778958,90700.0,90688.0,0.02208]
[1768063407653,0.05881493,90700.0,90688.0,0.02208]
[1768063407974,0.04778958,90700.0,90688.0,0.02208]
[1768063410081,0.05881493,90700.0,90688.0,0.02208]
[1768063412695,0.04778958,90700.0,90688.0,0.02208]
[1768063415357,0.05881493,90700.0,90688.0,0.02208]
[1768063416585,0.04778958,90700.0,90688.0,0.02208]
[1768063418374,0.05881493,90700.0,90688.0,0.02208]
[1768063419006,0.01102523,90701.0,90688.0,0.02208]
[1768063419163,0.01102535,90700.0,90688.0,0.02208]
[1768063425255,0.01102523,90701.0,90688.0,0.02208]
[1768063425668,0.01102535,90700.0,90688.0,0.02208]
[1768063426507,0.01102523,90701.0,90688.0,0.02208]
[1768063426669,0.01102535,90700.0,90688.0,0.02208]
[1768063427293,0.01102511,90702.0,90688.0,0.02208]
[1768063427671,0.01102511,90702.0,90690.0,0.29215877]
[1768063429272,0.01102523,90701.0,90690.0,0.29215877]
[1768063429615,0.01102511,90702.0,90690.0,0.29215877]
[1768063429831,0.01102499,90703.0,90690.0,0.29215877]
[1768063430028,0.01102511,90702.0,90690.0,0.29215877]
[1768063430786,0.01102499,90703.0,90690.0,0.29215877]
[1768063431324,0.05888127,90703.0,90690.0,0.29215877]
[1768063431744,0.01102511,90702.0,90690.0,0.29113002]
[1768063431891,0.05888127,90703.0,90690.0,0.29113002]
[1768063432089,0.05888127,90703.0,90688.0,0.03310681]
[1768063432299,0.05888127,90703.0,90689.0,0.01102669]
[1768063432922,0.01102511,90702.0,90688.0,0.03310681]
[1768063433538,0.01102511,90702.0,90689.0,0.04739984]
[1768063434474,0.01102523,90701.0,90689.0,0.04739984]
[1768063434684,0.01102511,90702.0,90689.0,0.04739984]
[1768063437360,0.01102499,90703.0,90689.0,0.05842653]
[1768063438890,0.01102499,90703.0,90689.0,0.01102669]